fUST/lending_fUST_20250715
["ID","MTS","AMOUNT","RATE_DAILY","PERIOD"]
[372107775,1752523843381,-460.0,0.00016712,2]
[372107777,1752523843391,-460.0,0.00016712,2]
[372107779,1752523843401,-460.0,0.00016712,2]
[372107781,1752523843410,-460.0,0.00016712,2]
[372107783,1752523843420,-460.0,0.00016712,2]
[372107785,1752523843430,-460.0,0.00016712,2]
[372107787,1752523843439,-460.0,0.00016712,2]
[372107789,1752523843449,-460.0,0.00016712,2]
[372107791,1752523843458,-460.0,0.00016712,2]
[372107793,1752523843468,-460.0,0.00016712,2]
[372107795,1752523843478,-460.0,0.00016712,2]
[372107797,1752523843487,-468.4,0.00016712,2]
[372107799,1752523843497,-481.24,0.00016712,2]
[372107801,1752523843506,-460.0,0.00016712,2]
[372107803,1752523843516,-460.0,0.00016712,2]
[372107805,1752523843525,-645.53,0.00016712,2]
[372107807,1752523843536,-593.17,0.00016712,2]
[372107809,1752523843545,-460.0,0.00016712,2]
[372107810,1752523843555,-460.0,0.00016712,2]
[372107812,1752523843565,-460.0,0.00016712,2]
[372107814,1752523843575,-460.0,0.00016712,2]
[372107816,1752523843585,-460.0,0.00016712,2]
[372107818,1752523843595,-460.0,0.00016712,2]
[372107820,1752523843609,-1221.52,0.00016712,2]
[372107822,1752523843619,-460.0,0.00016712,2]
[372107825,1752523843630,-460.0,0.00016712,2]
[372107826,1752523843640,-460.0,0.00016712,2]
[372107828,1752523843649,-460.0,0.00016712,2]
[372107831,1752523843659,-460.0,0.00016712,2]
[372107833,1752523843669,-460.0,0.00016712,2]
[372107834,1752523843679,-460.0,0.00016712,2]
[372107836,1752523843689,-460.0,0.00016712,2]
[372107838,1752523843699,-569.056064,0.00016712,2]
[372107841,1752523843708,-460.0,0.00016712,2]
[372107842,1752523843718,-460.0,0.00016712,2]
[372107844,1752523843728,-460.0,0.00016712,2]
[372107846,1752523843738,-460.0,0.00016712,2]
[372107848,1752523843748,-460.0,0.00016712,2]
[372107850,1752523843758,-621.62,0.00016712,2]
[372107852,1752523843768,-460.0,0.00016712,2]
[372107854,1752523843778,-2631.55,0.00016712,2]
[372107856,1752523843788,-1620.37,0.00016712,2]
[372107858,1752523843797,-460.0,0.00016712,2]
[372107860,1752523843807,-460.0,0.00016712,2]
[372107862,1752523843817,-576.25,0.00016712,2]
[372107864,1752523843827,-460.0,0.00016712,2]
[372107866,1752523843837,-460.0,0.00016712,2]
[372107868,1752523843847,-460.0,0.00016712,2]
[372107870,1752523843860,-460.0,0.00016712,2]
[372107871,1752523843870,-460.0,0.00016712,2]
[372107873,1752523843880,-513.51,0.00016712,2]
[372107875,1752523843889,-460.0,0.00016712,2]
[372107877,1752523843900,-462.47358001,0.00016712,2]
[372107879,1752523843910,-460.0,0.00016712,2]
[372107881,1752523843920,-460.0,0.00016712,2]
[372107883,1752523843930,-460.0,0.00016712,2]
[372107885,1752523843940,-1752.1,0.00016712,2]
[372107887,1752523843950,-460.0,0.00016712,2]
[372107889,1752523843960,-460.0,0.00016712,2]
[372107891,1752523843970,-460.0,0.00016712,2]
[372107893,1752523843980,-460.0,0.00016712,2]
[372107895,1752523843991,-489.86,0.00016712,2]
[372107897,1752523844001,-460.0,0.00016712,2]
[372107899,1752523844011,-460.0,0.00016712,2]
[372107901,1752523844021,-460.0,0.00016712,2]
[372107914,1752523844151,-460.0,0.00016712,2]
[372107916,1752523844161,-460.0,0.00016712,2]
[372107918,1752523844171,-460.0,0.00016712,2]
[372107920,1752523844180,-460.0,0.00016712,2]
[372107922,1752523844190,-460.0,0.00016712,2]
[372107924,1752523844199,-460.0,0.00016712,2]
[372107926,1752523844211,-364.70305668,0.00016712,2]
[372107928,1752523844220,-701.36,0.00016712,2]
[372107930,1752523844229,-460.0,0.00016712,2]
[372107932,1752523844239,-498.10045022,0.00016712,2]
[372107934,1752523844248,-460.0,0.00016712,2]
[372107935,1752523844258,-460.0,0.00016712,2]
[372107937,1752523844268,-460.0,0.00016712,2]
[372107939,1752523844278,-460.0,0.00016712,2]
[372107941,1752523844287,-460.0,0.00016712,2]
[372107943,1752523844297,-460.0,0.00016712,2]
[372107945,1752523844307,-460.0,0.00016712,2]
[372107947,1752523844317,-460.0,0.00016712,2]
[372107949,1752523844326,-460.0,0.00016712,2]
[372107951,1752523844335,-458.7946535,0.00016712,2]
[372107953,1752523844345,-460.0,0.00016712,2]
[372107955,1752523844357,-383.18436601,0.00016712,2]
[372107957,1752523844367,-460.0,0.00016712,2]
[372107959,1752523844376,-194.36180327,0.00016712,2]
[372107961,1752523844387,-460.0,0.00016712,2]
[372107963,1752523844397,-1583.58,0.00016712,2]
[372107965,1752523844406,-460.0,0.00016712,2]
[372107967,1752523844416,-353.05730634,0.00016712,2]
[372107969,1752523844426,-460.0,0.00016712,2]
[372107971,1752523844435,-460.0,0.00016712,2]
[372107973,1752523844445,-822.66,0.00016712,2]
[372107975,1752523844454,-460.0,0.00016712,2]
[372107976,1752523844463,-607.81,0.00016712,2]
[372107978,1752523844473,-460.0,0.00016712,2]
[372107980,1752523844482,-585.64873978,0.00016712,2]
[372107982,1752523844492,-460.0,0.00016712,2]
[372107984,1752523844502,-460.0,0.00016712,2]
[372107986,1752523844511,-634.84,0.00016712,2]
[372107988,1752523844520,-460.0,0.00016712,2]
[372107990,1752523844529,-240.52609319,0.00016712,2]
[372107992,1752523844538,-460.0,0.00016712,2]
[372107993,1752523844548,-460.0,0.00016712,2]
[372107995,1752523844557,-460.0,0.00016712,2]
[372107997,1752523844567,-460.0,0.00016712,2]
[372107999,1752523844576,-460.0,0.00016712,2]
[372108000,1752523844586,-460.0,0.00016712,2]
[372108002,1752523844596,-460.0,0.00016712,2]
[372108004,1752523844608,-779.7,0.00016712,2]
[372108006,1752523844617,-460.0,0.00016712,2]
[372108008,1752523844627,-460.0,0.00016712,2]
[372108010,1752523844636,-460.0,0.00016712,2]
[372108012,1752523844646,-511.11175927,0.00016712,2]
[372108014,1752523844655,-460.0,0.00016712,2]
[372108016,1752523844665,-519.83,0.00016712,2]
[372108018,1752523844675,-189.35343318,0.00016712,2]
[372108020,1752523844684,-460.0,0.00016712,2]
[372108022,1752523844693,-460.0,0.00016712,2]
[372108023,1752523844703,-460.0,0.00016712,2]
[372108025,1752523844712,-500.0,0.00016739,2]
[372108027,1752523844721,-500.0,0.00016767,2]
[372108029,1752523844740,-500.0,0.00016773,2]
[372108031,1752523844751,-500.0,0.00016773,2]
[372108033,1752523844761,-500.0,0.00016773,2]
[372108035,1752523844772,-500.0,0.00016794,2]
[372108037,1752523844781,-500.0,0.00016822,2]
[372108039,1752523844792,-163.68428812,0.00016849,2]
[372108041,1752523844801,-838.70323114,0.00016863,2]
[372108043,1752523844811,-160.0,0.00016863,2]
[372108045,1752523844822,-160.0,0.00016863,2]
[372108047,1752523844832,-214.33456592,0.00016863,2]
[372108049,1752523844843,-160.0,0.00016863,2]
[372108051,1752523844856,-525.46609069,0.00016863,2]
[372108053,1752523844866,-230.73061749,0.00016863,2]
[372108055,1752523844877,-12600.81778503,0.00016863,2]
[372108056,1752523844886,-215.47013733,0.00016863,2]
[372108058,1752523844897,-160.0,0.00016864,2]
[372108060,1752523844907,-151.0,0.000169,2]
[372108061,1752523844916,-4899.4222743,0.00016934,2]
[372108062,1752523844926,-1718.83272436,0.00016956,2]
[372108063,1752523844936,-460.0,0.00016985,2]
[372108064,1752523844946,-217.7196317,0.00016985,2]
[372108065,1752523844955,-472.98111678,0.00016985,2]
[372108066,1752523844965,-460.0,0.00016985,2]
[372108067,1752523844974,-460.0,0.00016985,2]
[372108068,1752523844984,-5652.61,0.00016985,2]
[372108069,1752523844993,-460.0,0.00016985,2]
[372108070,1752523845003,-979.19,0.00016985,2]
[372108071,1752523845012,-766.81,0.00016985,2]
[372108072,1752523845021,-1570.24,0.00016985,2]
[372108073,1752523845031,-1140.82,0.00016985,2]
[372108074,1752523845040,-460.0,0.00016986,2]
[372108075,1752523845050,-541.96,0.00016986,2]
[372108076,1752523845059,-460.0,0.00016986,2]
[372108077,1752523845068,-460.0,0.00016986,2]
[372108078,1752523845078,-460.0,0.00016986,2]
[372108079,1752523845087,-460.0,0.00016986,2]
[372108080,1752523845096,-541.34404419,0.00016986,2]
[372108081,1752523845107,-460.0,0.00016986,2]
[372108082,1752523845117,-460.0,0.00016986,2]
[372108084,1752523845126,-327.93131642,0.00016986,2]
[372108086,1752523845138,-460.0,0.00016986,2]
[372108088,1752523845147,-460.0,0.00016986,2]
[372108090,1752523845157,-460.0,0.00016986,2]
[372108092,1752523845167,-435.90989003,0.00016986,2]
[372108094,1752523845178,-460.0,0.00016986,2]
[372108096,1752523845187,-460.0,0.00016986,2]
[372108098,1752523845196,-506.16053034,0.00016986,2]
[372108099,1752523845205,-460.0,0.00016986,2]
[372108101,1752523845215,-460.0,0.00016986,2]
[372108103,1752523845226,-460.0,0.00016986,2]
[372108105,1752523845235,-460.0,0.00016986,2]
[372108107,1752523845245,-460.0,0.00016986,2]
[372108109,1752523845255,-460.0,0.00016986,2]
[372108111,1752523845264,-460.0,0.00016986,2]
[372108113,1752523845273,-460.0,0.00016986,2]
[372108115,1752523845283,-460.0,0.00016986,2]
[372108117,1752523845292,-460.0,0.00016986,2]
[372108119,1752523845302,-463.06636206,0.00016986,2]
[372108121,1752523845312,-488.69,0.00016986,2]
[372108123,1752523845322,-460.0,0.00016986,2]
[372108125,1752523845332,-460.0,0.00016986,2]
[372108127,1752523845343,-460.0,0.00016986,2]
[372108129,1752523845354,-460.0,0.00016986,2]
[372108131,1752523845363,-460.0,0.00016986,2]
[372108133,1752523845372,-460.0,0.00016986,2]
[372108135,1752523845382,-460.0,0.00016986,2]
[372108137,1752523845391,-460.0,0.00016986,2]
[372108139,1752523845401,-460.0,0.00016986,2]
[372108141,1752523845411,-460.0,0.00016986,2]
[372108143,1752523845420,-460.0,0.00016986,2]
[372108145,1752523845430,-514.19,0.00016986,2]
[372108147,1752523845439,-460.0,0.00016986,2]
[372108149,1752523845449,-460.0,0.00016986,2]
[372108151,1752523845459,-460.0,0.00016986,2]
[372108153,1752523845469,-460.0,0.00016986,2]
[372108155,1752523845479,-460.0,0.00016986,2]
[372108157,1752523845488,-557.41,0.00016986,2]
[372108159,1752523845498,-460.0,0.00016986,2]
[372108161,1752523845507,-460.0,0.00016986,2]
[372108163,1752523845517,-500.0,0.00016986,2]
[372108165,1752523845526,-460.0,0.00016986,2]
[372108167,1752523845536,-460.0,0.00016986,2]
[372108169,1752523845545,-460.0,0.00016986,2]
[372108171,1752523845554,-460.0,0.00016986,2]
[372108173,1752523845564,-460.0,0.00016986,2]
[372108175,1752523845573,-460.0,0.00016986,2]
[372108177,1752523845583,-796.36,0.00016986,2]
[372108179,1752523845592,-460.0,0.00016986,2]
[372108181,1752523845601,-460.0,0.00016986,2]
[372108183,1752523845611,-460.0,0.00016986,2]
[372108185,1752523845620,-460.0,0.00016986,2]
[372108187,1752523845629,-462.55391539,0.00016986,2]
[372108189,1752523845638,-182.08783053,0.00016986,2]
[372108190,1752523845647,-460.0,0.00016986,2]
[372108192,1752523845657,-460.0,0.00016986,2]
[372108194,1752523845666,-841.78,0.00016986,2]
[372108196,1752523845675,-460.0,0.00016986,2]
[372108198,1752523845685,-460.0,0.00016986,2]
[372108200,1752523845694,-460.0,0.00016986,2]
[372108202,1752523845703,-460.0,0.00016986,2]
[372108204,1752523845713,-460.0,0.00016986,2]
[372108206,1752523845722,-460.0,0.00016986,2]
[372108208,1752523845731,-460.0,0.00016986,2]
[372108210,1752523845741,-460.0,0.00016986,2]
[372108212,1752523845751,-460.0,0.00016986,2]
[372108214,1752523845760,-752.74,0.00016986,2]
[372108216,1752523845769,-460.0,0.00016986,2]
[372108218,1752523845779,-544.66711692,0.00016986,2]
[372108220,1752523845788,-191.2645485,0.00016986,2]
[372108222,1752523845797,-460.0,0.00016986,2]
[372108224,1752523845806,-460.0,0.00016986,2]
[372108226,1752523845815,-204.86255954,0.00016986,2]
[372108228,1752523845825,-460.0,0.00016986,2]
[372108230,1752523845834,-460.0,0.00016986,2]
[372108232,1752523845843,-2405.54,0.00016986,2]
[372108234,1752523845853,-460.0,0.00016986,2]
[372108236,1752523845862,-460.0,0.00016986,2]
[372108238,1752523845872,-460.0,0.00016986,2]
[372108240,1752523845882,-460.0,0.00016986,2]
[372108242,1752523845891,-460.0,0.00016986,2]
[372108244,1752523845900,-323.80030441,0.00016986,2]
[372108246,1752523845916,-460.0,0.00016986,2]
[372108248,1752523845928,-460.0,0.00016986,2]
[372108249,1752523845939,-460.0,0.00016986,2]
[372108251,1752523845949,-460.0,0.00016986,2]
[372108253,1752523845958,-460.0,0.00016986,2]
[372108255,1752523845968,-460.0,0.00016986,2]
[372108257,1752523845978,-508.83,0.00016986,2]
[372108259,1752523845987,-460.0,0.00016986,2]
[372108261,1752523845997,-460.0,0.00016986,2]
[372108263,1752523846006,-460.0,0.00016986,2]
[372108265,1752523846016,-460.0,0.00016986,2]
[372108267,1752523846025,-460.0,0.00016986,2]
[372108269,1752523846035,-460.0,0.00016986,2]
[372108271,1752523846044,-460.0,0.00016986,2]
[372108273,1752523846054,-460.0,0.00016986,2]
[372108275,1752523846064,-460.0,0.00016986,2]
[372108277,1752523846073,-460.0,0.00016986,2]
[372108279,1752523846082,-460.0,0.00016986,2]
[372108281,1752523846091,-460.0,0.00016986,2]
[372108283,1752523846101,-936.8,0.00016986,2]
[372108285,1752523846111,-986.06,0.00016986,2]
[372108287,1752523846121,-460.0,0.00016986,2]
[372108289,1752523846130,-460.0,0.00016986,2]
[372108291,1752523846144,-460.0,0.00016986,2]
[372108293,1752523846153,-460.0,0.00016986,2]
[372108295,1752523846163,-460.0,0.00016986,2]
[372108297,1752523846172,-460.0,0.00016986,2]
[372108299,1752523846181,-751.76,0.00016986,2]
[372108301,1752523846192,-1466.15,0.00016986,2]
[372108303,1752523846201,-460.0,0.00016986,2]
[372108305,1752523846212,-460.0,0.00016986,2]
[372108307,1752523846222,-492.2,0.00016986,2]
[372108309,1752523846232,-460.0,0.00016986,2]
[372108310,1752523846241,-460.0,0.00016986,2]
[372108312,1752523846251,-460.0,0.00016986,2]
[372108315,1752523846260,-460.0,0.00016986,2]
[372108316,1752523846269,-460.0,0.00016986,2]
[372108318,1752523846280,-460.0,0.00016986,2]
[372108320,1752523846289,-502.57483972,0.00016986,2]
[372108322,1752523846298,-460.0,0.00016986,2]
[372108324,1752523846307,-460.0,0.00016986,2]
[372108326,1752523846316,-3285.73,0.00016986,2]
[372108328,1752523846325,-981.45,0.00016986,2]
[372108330,1752523846335,-460.0,0.00016986,2]
[372108332,1752523846343,-460.0,0.00016986,2]
[372108334,1752523846355,-460.0,0.00016986,2]
[372108336,1752523846364,-460.0,0.00016986,2]
[372108338,1752523846373,-460.0,0.00016986,2]
[372108340,1752523846383,-460.0,0.00016986,2]
[372108342,1752523846393,-968.1,0.00016986,2]
[372108344,1752523846402,-460.0,0.00016986,2]
[372108346,1752523846412,-460.0,0.00016986,2]
[372108348,1752523846421,-458.33004213,0.00016986,2]
[372108350,1752523846431,-460.0,0.00016986,2]
[372108352,1752523846441,-4398.49,0.00016986,2]
[372108354,1752523846450,-460.00000001,0.00016986,2]
[372108356,1752523846459,-4209.19,0.00016986,2]
[372108358,1752523846469,-460.0,0.00016986,2]
[372108360,1752523846478,-309.43847576,0.00016986,2]
[372108362,1752523846488,-460.0,0.00016986,2]
[372108364,1752523846497,-460.0,0.00016986,2]
[372108366,1752523846507,-460.0,0.00016986,2]
[372108368,1752523846516,-460.0,0.00016986,2]
[372108370,1752523846526,-460.0,0.00016986,2]
[372108372,1752523846535,-460.0,0.00016986,2]
[372108374,1752523846545,-460.0,0.00016986,2]
[372108376,1752523846556,-468.4,0.00016986,2]
[372108378,1752523846566,-481.24,0.00016986,2]
[372108380,1752523846575,-460.0,0.00016986,2]
[372108382,1752523846585,-460.0,0.00016986,2]
[372108384,1752523846595,-645.53,0.00016986,2]
[372108386,1752523846607,-593.17,0.00016986,2]
[372108388,1752523846616,-460.0,0.00016986,2]
[372108390,1752523846625,-460.0,0.00016986,2]
[372108392,1752523846636,-460.0,0.00016986,2]
[372108394,1752523846645,-460.0,0.00016986,2]
[372108396,1752523846655,-460.0,0.00016986,2]
[372108398,1752523846664,-1221.52,0.00016986,2]
[372108400,1752523846673,-460.0,0.00016986,2]
[372108402,1752523846683,-460.0,0.00016986,2]
[372108404,1752523846692,-460.0,0.00016986,2]
[372108406,1752523846709,-460.0,0.00016986,2]
[372108408,1752523846719,-460.0,0.00016986,2]
[372108410,1752523846729,-460.0,0.00016986,2]
[372108412,1752523846738,-460.0,0.00016986,2]
[372108414,1752523846748,-621.62,0.00016986,2]
[372108416,1752523846758,-2631.55,0.00016986,2]
[372108418,1752523846768,-1620.37,0.00016986,2]
[372108420,1752523846777,-460.0,0.00016986,2]
[372108422,1752523846793,-576.25,0.00016986,2]
[372108424,1752523846803,-460.0,0.00016986,2]
[372108426,1752523846812,-460.0,0.00016986,2]
[372108428,1752523846822,-460.0,0.00016986,2]
[372108430,1752523846832,-460.0,0.00016986,2]
[372108432,1752523846841,-490.63122503,0.00016986,2]
[372108434,1752523846851,-513.51,0.00016986,2]
[372108436,1752523846860,-460.0,0.00016986,2]
[372108438,1752523846869,-460.0,0.00016986,2]
[372108440,1752523846879,-497.50175411,0.00016986,2]
[372108442,1752523846888,-1752.1,0.00016986,2]
[372108444,1752523846898,-460.0,0.00016986,2]
[372108446,1752523846907,-460.0,0.00016986,2]
[372108448,1752523846917,-460.0,0.00016986,2]
[372108450,1752523846927,-460.0,0.00016986,2]
[372108452,1752523846936,-489.86,0.00016986,2]
[372108454,1752523846945,-460.0,0.00016986,2]
[372108456,1752523846954,-460.0,0.00016986,2]
[372108458,1752523846963,-460.0,0.00016986,2]
[372108459,1752523846972,-460.0,0.00016986,2]
[372108461,1752523846982,-460.0,0.00016986,2]
[372108464,1752523846992,-460.0,0.00016986,2]
[372108465,1752523847002,-460.0,0.00016986,2]
[372108468,1752523847012,-701.36,0.00016986,2]
[372108469,1752523847022,-460.0,0.00016986,2]
[372108482,1752523847142,-460.0,0.00016986,2]
[372108484,1752523847151,-460.0,0.00016986,2]
[372108486,1752523847160,-460.0,0.00016986,2]
[372108488,1752523847171,-460.0,0.00016986,2]
[372108491,1752523847181,-460.0,0.00016986,2]
[372108492,1752523847190,-460.0,0.00016986,2]
[372108494,1752523847200,-460.0,0.00016986,2]
[372108497,1752523847212,-1583.58,0.00016986,2]
[372108499,1752523847221,-460.0,0.00016986,2]
[372108501,1752523847231,-460.0,0.00016986,2]
[372108502,1752523847240,-822.66,0.00016986,2]
[372108504,1752523847249,-460.0,0.00016986,2]
[372108506,1752523847258,-634.84,0.00016986,2]
[372108508,1752523847267,-460.0,0.00016986,2]
[372108510,1752523847276,-460.0,0.00016986,2]
[372108512,1752523847286,-466.72916978,0.00016986,2]
[372108514,1752523847295,-460.0,0.00016986,2]
[372108516,1752523847304,-460.0,0.00016986,2]
[372108518,1752523847313,-460.0,0.00016986,2]
[372108520,1752523847322,-779.7,0.00016986,2]
[372108522,1752523847331,-460.0,0.00016986,2]
[372108524,1752523847340,-460.0,0.00016986,2]
[372108526,1752523847350,-590.11139795,0.00016986,2]
[372108528,1752523847359,-519.83,0.00016986,2]
[372108530,1752523847369,-460.0,0.00016986,2]
[372108532,1752523847379,-460.0,0.00016986,2]
[372108534,1752523847389,-1000.0,0.00017,2]
[372108536,1752523847399,-189.96,0.00017055,2]
[372108538,1752523847408,-1075.56,0.00017093,3]
[372108540,1752523847418,-537.78,0.00017093,3]
[372108542,1752523847427,-1986.71853967,0.00017165,2]
[372108544,1752523847436,-151.0,0.00017193,2]
[372108546,1752523847445,-420.0,0.00017193,2]
[372108548,1752523847455,-1680.0,0.00017201,2]
[372108550,1752523847465,-151.0,0.00017251,2]
[372108552,1752523847474,-151.0,0.00017251,2]
[372108554,1752523847483,-2000.0,0.00017251,2]
[372108556,1752523847492,-207.4,0.00017251,2]
[372108558,1752523847501,-2000.0,0.00017251,2]
[372108560,1752523847511,-151.0,0.00017251,2]
[372108562,1752523847520,-151.0,0.00017251,2]
[372108564,1752523847529,-151.0,0.00017251,2]
[372108566,1752523847538,-151.0,0.00017251,2]
[372108568,1752523847547,-1002.14482548,0.00017259,2]
[372108570,1752523847556,-460.0,0.00017259,2]
[372108572,1752523847566,-460.0,0.00017259,2]
[372108574,1752523847575,-5652.61,0.00017259,2]
[372108576,1752523847584,-460.0,0.00017259,2]
[372108578,1752523847594,-766.81,0.00017259,2]
[372108580,1752523847603,-979.19,0.00017259,2]
[372108582,1752523847612,-1570.24,0.00017259,2]
[372108584,1752523847621,-1140.82,0.00017259,2]
[372108586,1752523847631,-460.0,0.0001726,2]
[372108588,1752523847640,-460.0,0.0001726,2]
[372108590,1752523847649,-460.0,0.0001726,2]
[372108592,1752523847658,-460.0,0.0001726,2]
[372108594,1752523847667,-460.0,0.0001726,2]
[372108596,1752523847677,-460.0,0.0001726,2]
[372108598,1752523847687,-498.91554705,0.0001726,2]
[372108600,1752523847696,-460.0,0.0001726,2]
[372108602,1752523847705,-460.0,0.0001726,2]
[372108603,1752523847715,-405.30714718,0.0001726,2]
[372108605,1752523847724,-460.0,0.0001726,2]
[372108608,1752523847733,-460.0,0.0001726,2]
[372108609,1752523847743,-481.86184393,0.0001726,2]
[372108612,1752523847753,-460.0,0.0001726,2]
[372108614,1752523847763,-521.56790027,0.0001726,2]
[372108616,1752523847773,-460.0,0.0001726,2]
[372108618,1752523847783,-460.0,0.0001726,2]
[372108620,1752523847792,-151.0,0.0001726,2]
[372108622,1752523847802,-460.0,0.0001726,2]
[372108624,1752523847813,-460.0,0.0001726,2]
[372108626,1752523847822,-460.0,0.0001726,2]
[372108628,1752523847831,-151.0,0.0001726,2]
[372108630,1752523847840,-460.0,0.0001726,2]
[372108632,1752523847850,-460.0,0.0001726,2]
[372108634,1752523847859,-460.0,0.0001726,2]
[372108636,1752523847869,-460.0,0.0001726,2]
[372108638,1752523847878,-563.45625718,0.0001726,2]
[372108640,1752523847888,-162.944428,0.0001726,2]
[372108642,1752523847898,-460.0,0.0001726,2]
[372108644,1752523847915,-460.0,0.0001726,2]
[372108645,1752523847924,-460.0,0.0001726,2]
[372108647,1752523847934,-460.0,0.0001726,2]
[372108649,1752523847943,-460.0,0.0001726,2]
[372108651,1752523847953,-460.0,0.0001726,2]
[372108653,1752523847962,-460.0,0.0001726,2]
[372108655,1752523847972,-548.70595581,0.0001726,2]
[372108657,1752523847981,-460.0,0.0001726,2]
[372108659,1752523847992,-460.0,0.0001726,2]
[372108661,1752523848001,-460.0,0.0001726,2]
[372108663,1752523848011,-460.0,0.0001726,2]
[372108665,1752523848020,-460.0,0.0001726,2]
[372108667,1752523848030,-460.0,0.0001726,2]
[372108669,1752523848040,-4041.90392756,0.0001726,2]
[372108672,1752523848050,-460.0,0.0001726,2]
[372108673,1752523848060,-460.0,0.0001726,2]
[372108675,1752523848070,-488.69,0.0001726,2]
[372108677,1752523848079,-460.0,0.0001726,2]
[372108679,1752523848089,-460.0,0.0001726,2]
[372108681,1752523848098,-460.0,0.0001726,2]
[372108683,1752523848109,-460.0,0.0001726,2]
[372108685,1752523848119,-460.0,0.0001726,2]
[372108687,1752523848129,-460.0,0.0001726,2]
[372108689,1752523848145,-514.19,0.0001726,2]
[372108691,1752523848155,-460.0,0.0001726,2]
[372108693,1752523848165,-460.0,0.0001726,2]
[372108695,1752523848174,-444.14886663,0.0001726,2]
[372108697,1752523848184,-460.0,0.0001726,2]
[372108699,1752523848193,-557.41,0.0001726,2]
[372108701,1752523848202,-460.0,0.0001726,2]
[372108703,1752523848213,-500.0,0.0001726,2]
[372108705,1752523848223,-460.0,0.0001726,2]
[372108707,1752523848232,-460.0,0.0001726,2]
[372108709,1752523848242,-460.0,0.0001726,2]
[372108711,1752523848251,-460.0,0.0001726,2]
[372108713,1752523848260,-460.0,0.0001726,2]
[372108715,1752523848270,-796.36,0.0001726,2]
[372108717,1752523848279,-460.0,0.0001726,2]
[372108719,1752523848289,-460.0,0.0001726,2]
[372108721,1752523848298,-460.0,0.0001726,2]
[372108723,1752523848308,-841.78,0.0001726,2]
[372108725,1752523848318,-460.0,0.0001726,2]
[372108727,1752523848327,-460.0,0.0001726,2]
[372108729,1752523848337,-460.0,0.0001726,2]
[372108731,1752523848347,-460.0,0.0001726,2]
[372108733,1752523848357,-460.0,0.0001726,2]
[372108735,1752523848367,-460.0,0.0001726,2]
[372108737,1752523848376,-460.0,0.0001726,2]
[372108739,1752523848385,-460.0,0.0001726,2]
[372108741,1752523848395,-460.0,0.0001726,2]
[372108743,1752523848404,-752.74,0.0001726,2]
[372108745,1752523848414,-460.0,0.0001726,2]
[372108747,1752523848423,-460.0,0.0001726,2]
[372108749,1752523848433,-460.0,0.0001726,2]
[372108751,1752523848443,-460.0,0.0001726,2]
[372108753,1752523848452,-460.0,0.0001726,2]
[372108755,1752523848462,-2405.54,0.0001726,2]
[372108756,1752523848471,-460.0,0.0001726,2]
[372108759,1752523848481,-460.0,0.0001726,2]